fUST/lending_fUST_20241201
["ID","MTS","AMOUNT","RATE_DAILY","PERIOD"]
[343902878,1733016644088,-500.0,0.00025205,3]
[343902879,1733016644098,-500.0,0.00025205,3]
[343902880,1733016644108,-500.0,0.00025205,3]
[343902881,1733016644117,-500.0,0.00025205,3]
[343902882,1733016644127,-500.0,0.00025205,3]
[343902883,1733016644137,-500.0,0.00025205,3]
[343902884,1733016644146,-500.0,0.00025205,3]
[343902885,1733016644157,-500.0,0.00025205,3]
[343902886,1733016644167,-500.0,0.00025205,3]
[343902887,1733016644177,-500.0,0.00025205,3]
[343902888,1733016644187,-500.0,0.00025205,3]
[343902889,1733016644199,-489.56879847,0.00025205,3]
[343902890,1733016644208,-500.0,0.00025205,3]
[343902891,1733016644218,-500.0,0.00025205,3]
[343902892,1733016644228,-1344.09,0.00025205,3]
[343902893,1733016644238,-500.0,0.00025205,3]
[343902894,1733016644247,-500.0,0.00025205,3]
[343902895,1733016644256,-500.0,0.00025205,3]
[343902896,1733016644266,-500.0,0.00025205,2]
[343902897,1733016644276,-529.4,0.00025205,3]
[343902898,1733016644285,-1194.05,0.00025205,3]
[343902899,1733016644295,-500.0,0.00025205,3]
[343902900,1733016644304,-500.0,0.00025205,3]
[343902901,1733016644314,-500.0,0.00025205,3]
[343902902,1733016644323,-500.0,0.00025205,3]
[343902903,1733016644332,-500.0,0.00025205,3]
[343902904,1733016644342,-1010.21,0.00025205,3]
[343902905,1733016644350,-500.0,0.00025205,3]
[343902906,1733016644359,-500.0,0.00025205,3]
[343902907,1733016644371,-500.0,0.00025205,3]
[343902908,1733016644380,-500.0,0.00025205,3]
[343902909,1733016644391,-500.0,0.00025205,3]
[343902910,1733016644400,-500.0,0.00025205,3]
[343902911,1733016644410,-500.0,0.00025205,3]
[343902912,1733016644419,-500.0,0.00025205,3]
[343902913,1733016644428,-500.0,0.00025205,3]
[343902914,1733016644437,-503.73237195,0.00025205,3]
[343902915,1733016644448,-539.88978058,0.00025205,2]
[343902916,1733016644458,-500.0,0.00025205,3]
[343902917,1733016644467,-500.0,0.00025205,3]
[343902918,1733016644476,-511.56259699,0.00025205,3]
[343902919,1733016644485,-508.68212851,0.00025205,3]
[343902920,1733016644494,-500.0,0.0002524,2]
[343902921,1733016644504,-336.40382975,0.00025309,2]
[343902922,1733016644513,-500.0,0.00025472,3]
[343902923,1733016644522,-500.0,0.00025472,3]
[343902924,1733016644531,-500.0,0.00025472,3]
[343902925,1733016644541,-512.23,0.00025472,3]
[343902926,1733016644550,-500.0,0.00025472,3]
[343902927,1733016644559,-856.12,0.00025472,3]
[343902928,1733016644569,-500.0,0.00025472,3]
[343902929,1733016644578,-500.0,0.00025472,3]
[343902930,1733016644588,-500.0,0.00025472,3]
[343902931,1733016644597,-500.0,0.00025472,3]
[343902932,1733016644607,-500.0,0.00025472,3]
[343902933,1733016644616,-500.0,0.00025474,3]
[343902934,1733016644625,-500.0,0.00025475,3]
[343902935,1733016644635,-1169.27083333,0.00025475,3]
[343902936,1733016644644,-500.0,0.00025475,3]
[343902937,1733016644654,-500.0,0.00025475,3]
[343902938,1733016644664,-356.03,0.00025479,3]
[343902939,1733016644673,-500.0,0.00025479,3]
[343902940,1733016644682,-500.0,0.00025479,3]
[343902941,1733016644693,-500.0,0.00025479,3]
[343902942,1733016644702,-500.0,0.00025479,3]
[343902943,1733016644712,-500.0,0.00025479,3]
[343902944,1733016644721,-500.0,0.00025479,3]
[343902945,1733016644731,-500.0,0.00025479,3]
[343902946,1733016644740,-500.0,0.00025479,3]
[343902947,1733016644750,-500.0,0.00025479,3]
[343902948,1733016644761,-500.0,0.00025479,3]
[343902949,1733016644771,-500.0,0.00025479,3]
[343902950,1733016644780,-500.0,0.00025479,3]
[343902951,1733016644789,-500.0,0.00025479,3]
[343902952,1733016644798,-943.13,0.00025479,3]
[343902953,1733016644807,-500.0,0.00025479,3]
[343902954,1733016644816,-500.0,0.00025479,3]
[343902955,1733016644826,-552.36,0.00025479,3]
[343902956,1733016644835,-500.0,0.00025479,3]
[343902957,1733016644844,-668.54,0.00025479,3]
[343902958,1733016644854,-500.0,0.00025479,3]
[343902959,1733016644867,-500.0,0.00025479,3]
[343902960,1733016644878,-500.0,0.00025479,3]
[343902961,1733016644888,-500.0,0.00025479,3]
[343902962,1733016644896,-280.39298457,0.00025479,3]
[343902963,1733016644907,-391.41416097,0.00025479,3]
[343902964,1733016644916,-178.76627064,0.00025479,3]
[343902965,1733016644926,-500.0,0.00025479,3]
[343902966,1733016644935,-587.8,0.00025479,3]
[343902967,1733016644947,-1000.0,0.00025479,2]
[343902968,1733016644956,-502.03829316,0.00025479,3]
[343902969,1733016644966,-500.0,0.00025479,3]
[343902970,1733016644975,-500.0,0.00025479,3]
[343902971,1733016644985,-500.0,0.00025479,3]
[343902972,1733016644994,-500.0,0.00025479,3]
[343902973,1733016645003,-513.50209846,0.00025479,3]
[343902974,1733016645013,-500.0,0.00025479,3]
[343902975,1733016645024,-500.0,0.00025479,3]
[343902976,1733016645033,-504.87631153,0.00025479,3]
[343902977,1733016645043,-500.0,0.00025479,3]
[343902978,1733016645119,-500.0,0.00025479,3]
[343902979,1733016645129,-500.0,0.00025479,3]
[343902980,1733016645139,-500.0,0.00025479,3]
[343902981,1733016645148,-500.0,0.00025479,3]
[343902982,1733016645157,-500.0,0.00025479,3]
[343902983,1733016645168,-500.0,0.00025479,3]
[343902984,1733016645178,-500.0,0.00025479,3]
[343902985,1733016645188,-500.0,0.00025479,3]
[343902986,1733016645199,-230.94277328,0.00025479,3]
[343902987,1733016645208,-500.0,0.00025479,3]
[343902988,1733016645218,-509.87226728,0.00025479,3]
[343902989,1733016645228,-500.0,0.00025479,3]
[343902990,1733016645238,-1344.09,0.00025479,3]
[343902991,1733016645247,-500.0,0.00025479,3]
[343902992,1733016645257,-218.73316623,0.00025479,3]
[343902993,1733016645266,-500.0,0.00025479,3]
[343902994,1733016645276,-1194.05,0.00025479,3]
[343902995,1733016645286,-500.0,0.00025479,3]
[343902996,1733016645295,-500.0,0.00025479,3]
[343902997,1733016645304,-500.0,0.00025479,3]
[343902998,1733016645313,-560.22,0.00025479,3]
[343902999,1733016645323,-1010.21,0.00025479,3]
[343903000,1733016645332,-500.0,0.00025479,3]
[343903001,1733016645342,-500.0,0.00025479,3]
[343903002,1733016645351,-500.0,0.00025479,3]
[343903003,1733016645360,-500.0,0.00025479,3]
[343903004,1733016645370,-561.55,0.00025479,3]
[343903005,1733016645379,-500.0,0.00025479,3]
[343903006,1733016645388,-500.0,0.00025479,3]
[343903007,1733016645398,-500.0,0.00025479,3]
[343903008,1733016645408,-500.0,0.00025479,3]
[343903009,1733016645418,-502.33881125,0.00025479,3]
[343903010,1733016645427,-300.0,0.000255,2]
[343903011,1733016645436,-500.0,0.00025521,2]
[343903012,1733016645450,-500.0,0.00025746,3]
[343903013,1733016645459,-290.75047882,0.00025746,3]
[343903014,1733016645469,-500.0,0.00025746,3]
[343903015,1733016645478,-856.12,0.00025746,3]
[343903016,1733016645487,-500.0,0.00025746,3]
[343903017,1733016645497,-500.0,0.00025746,3]
[343903018,1733016645507,-500.0,0.00025746,3]
[343903019,1733016645516,-500.0,0.00025746,3]
[343903020,1733016645525,-500.0,0.00025746,3]
[343903021,1733016645535,-322.08,0.00025749,3]
[343903022,1733016645544,-500.0,0.00025749,3]
[343903023,1733016645554,-500.0,0.00025753,3]
[343903024,1733016645563,-500.0,0.00025753,3]
[343903025,1733016645573,-500.0,0.00025753,3]
[343903026,1733016645582,-500.0,0.00025753,3]
[343903027,1733016645592,-500.0,0.00025753,3]
[343903028,1733016645601,-500.0,0.00025753,3]
[343903029,1733016645610,-577.5,0.00025753,3]
[343903030,1733016645620,-500.0,0.00025753,3]
[343903032,1733016645629,-500.0,0.00025753,3]
[343903033,1733016645638,-500.0,0.00025753,3]
[343903034,1733016645648,-500.0,0.00025753,3]
[343903035,1733016645657,-500.0,0.00025753,3]
[343903036,1733016645666,-943.13,0.00025753,3]
[343903037,1733016645675,-500.0,0.00025753,3]
[343903038,1733016645685,-500.0,0.00025753,3]
[343903039,1733016645698,-552.36,0.00025753,3]
[343903040,1733016645707,-500.0,0.00025753,3]
[343903041,1733016645719,-668.54,0.00025753,3]
[343903042,1733016645728,-500.0,0.00025753,3]
[343903043,1733016645738,-500.0,0.00025753,3]
[343903044,1733016645747,-500.0,0.00025753,3]
[343903046,1733016645757,-500.0,0.00025753,3]
[343903049,1733016645765,-587.8,0.00025753,3]
[343903051,1733016645775,-503.84948636,0.00025753,2]
[343903052,1733016645785,-500.0,0.00025753,3]
[343903053,1733016645794,-500.0,0.00025753,3]
[343903054,1733016645804,-500.0,0.00025753,3]
[343903055,1733016645814,-500.0,0.00025753,3]
[343903056,1733016645823,-500.0,0.00025753,3]
[343903057,1733016645835,-500.0,0.00025753,3]
[343903058,1733016645844,-500.0,0.00025753,3]
[343903059,1733016645855,-500.0,0.00025753,3]
[343903060,1733016645866,-500.0,0.00025753,3]
[343903061,1733016645877,-500.0,0.00025753,3]
[343903062,1733016645887,-500.0,0.00025753,3]
[343903064,1733016645896,-500.0,0.00025753,3]
[343903065,1733016645907,-500.0,0.00025753,3]
[343903066,1733016645919,-500.0,0.00025753,3]
[343903067,1733016645931,-500.0,0.00025753,3]
[343903068,1733016645942,-500.0,0.00025753,3]
[343903069,1733016645953,-500.0,0.00025753,3]
[343903070,1733016645963,-1344.09,0.00025753,3]
[343903071,1733016645973,-500.0,0.00025753,3]
[343903072,1733016645982,-500.0,0.00025753,3]
[343903073,1733016645992,-1194.05,0.00025753,3]
[343903074,1733016646001,-500.0,0.00025753,3]
[343903075,1733016646011,-500.0,0.00025753,3]
[343903076,1733016646020,-1010.21,0.00025753,3]
[343903078,1733016646029,-500.0,0.00025753,3]
[343903079,1733016646039,-500.0,0.00025753,3]
[343903080,1733016646048,-500.0,0.00025753,3]
[343903081,1733016646057,-500.0,0.00025753,3]
[343903082,1733016646066,-500.0,0.00025753,3]
[343903083,1733016646075,-500.0,0.00025753,3]
[343903084,1733016646084,-500.0,0.00025753,3]
[343903085,1733016646094,-500.0,0.00025753,3]
[343903086,1733016646103,-161.0,0.00025775,2]
[343903087,1733016646112,-157.492208,0.00025886,2]
[343903088,1733016646121,-293.37377029,0.00025925,2]
[343903089,1733016646131,-193.0,0.00025942,2]
[343903090,1733016646140,-2176.0,0.0002597,2]
[343903091,1733016646149,-2378.0,0.0002597,2]
[343903093,1733016646158,-175.948,0.0002597,2]
[343903094,1733016646168,-13165.4024586,0.00026,3]
[343903095,1733016646177,-500.0,0.0002602,3]
[343903096,1733016646186,-500.0,0.0002602,3]
[343903097,1733016646197,-856.12,0.0002602,3]
[343903098,1733016646206,-500.0,0.0002602,3]
[343903099,1733016646215,-203.72284049,0.0002602,3]
[343903100,1733016646224,-500.0,0.0002602,3]
[343903101,1733016646234,-500.0,0.0002602,3]
[343903102,1733016646244,-500.0,0.00026023,3]
[343903103,1733016646253,-500.0,0.00026027,3]
[343903104,1733016646263,-500.0,0.00026027,3]
[343903105,1733016646272,-500.0,0.00026027,3]
[343903106,1733016646281,-500.0,0.00026027,3]
[343903107,1733016646290,-224.23,0.00026027,3]
[343903108,1733016646299,-500.0,0.00026027,3]
[343903109,1733016646308,-500.0,0.00026027,3]
[343903110,1733016646318,-500.0,0.00026027,3]
[343903111,1733016646327,-500.0,0.00026027,3]
[343903112,1733016646336,-500.0,0.00026027,3]
[343903113,1733016646346,-943.13,0.00026027,3]
[343903114,1733016646355,-599.0327473,0.00026027,3]
[343903115,1733016646364,-500.0,0.00026027,3]
[343903116,1733016646373,-552.36,0.00026027,3]
[343903117,1733016646382,-500.0,0.00026027,3]
[343903118,1733016646392,-668.54,0.00026027,3]
[343903119,1733016646401,-500.0,0.00026027,3]
[343903120,1733016646410,-500.0,0.00026027,3]
[343903121,1733016646419,-500.0,0.00026027,3]
[343903122,1733016646428,-500.0,0.00026027,3]
[343903123,1733016646438,-587.8,0.00026027,3]
[343903124,1733016646449,-500.0,0.00026027,3]
[343903125,1733016646459,-500.0,0.00026027,3]
[343903126,1733016646468,-500.0,0.00026027,3]
[343903127,1733016646477,-500.0,0.00026027,3]
[343903128,1733016646487,-500.0,0.00026027,3]
[343903129,1733016646496,-500.0,0.00026027,3]
[343903130,1733016646506,-500.0,0.00026027,3]
[343903131,1733016646514,-500.0,0.00026027,3]
[343903132,1733016646524,-500.0,0.00026027,3]
[343903133,1733016646533,-500.0,0.00026027,3]
[343903134,1733016646542,-500.0,0.00026027,3]
[343903135,1733016646552,-500.0,0.00026027,3]
[343903136,1733016646561,-500.0,0.00026027,3]
[343903137,1733016646571,-500.0,0.00026027,3]
[343903138,1733016646581,-500.0,0.00026027,3]
[343903139,1733016646590,-500.0,0.00026027,3]
[343903140,1733016646663,-500.0,0.00026027,3]
[343903141,1733016646674,-1344.09,0.00026027,3]
[343903142,1733016646684,-500.0,0.00026027,3]
[343903143,1733016646696,-500.0,0.00026027,3]
[343903144,1733016646706,-1194.05,0.00026027,3]
[343903145,1733016646716,-500.0,0.00026027,3]
[343903146,1733016646726,-500.0,0.00026027,3]
[343903147,1733016646735,-1010.21,0.00026027,3]
[343903148,1733016646744,-500.0,0.00026027,3]
[343903149,1733016646758,-500.0,0.00026027,3]
[343903150,1733016646767,-151.0,0.00026027,7]
[343903151,1733016646777,-518.29,0.00026027,3]
[343903152,1733016646787,-285.28,0.00026027,3]
[343903153,1733016646796,-500.0,0.00026027,3]
[343903154,1733016646806,-500.0,0.00026027,3]
[343903155,1733016646815,-336.40382975,0.00026062,2]
[343903156,1733016646825,-500.0,0.00026294,3]
[343903157,1733016646835,-500.0,0.00026294,3]
[343903158,1733016646844,-856.12,0.00026294,3]
[343903159,1733016646853,-500.0,0.00026294,3]
[343903160,1733016646865,-460.05205587,0.00026294,3]
[343903161,1733016647009,-500.0,0.00024657,3]
[343903162,1733016647018,-500.0,0.00024657,3]
[343903163,1733016647028,-500.0,0.00024657,3]
[343903164,1733016647038,-500.0,0.00024931,3]
[343903165,1733016647047,-16.33430756,0.00024931,3]
[343903166,1733016647059,-484.96410239,0.00024931,3]
[343903167,1733016647068,-509.29663445,0.00024931,3]
[343903168,1733016647077,-500.0,0.00025205,3]
[343903169,1733016647086,-500.0,0.00025479,3]
[343903170,1733016647095,-500.0,0.00025753,3]
[343903171,1733016647105,-500.0,0.00026027,3]
[343903172,1733016647115,-39.94794413,0.00026294,3]
[343903173,1733016647125,-500.0,0.00026294,3]
[343903174,1733016647135,-153.005364,0.00026296,7]
[343903175,1733016647144,-153.005364,0.00026296,7]
[343903176,1733016647156,-500.0,0.00026297,3]
[343903177,1733016647165,-500.0,0.00026301,3]
[343903178,1733016647176,-500.0,0.00026301,3]
[343903179,1733016647186,-500.0,0.00026301,3]
[343903180,1733016647200,-500.0,0.00026301,3]
[343903181,1733016647210,-500.0,0.00026301,3]
[343903182,1733016647221,-500.0,0.00026301,3]
[343903183,1733016647231,-500.0,0.00026301,3]
[343903184,1733016647241,-500.0,0.00026301,3]
[343903185,1733016647251,-500.0,0.00026301,3]
[343903186,1733016647260,-943.13,0.00026301,3]
[343903187,1733016647270,-151.0,0.00026301,7]
[343903188,1733016647280,-500.0,0.00026301,3]
[343903189,1733016647291,-552.36,0.00026301,3]
[343903190,1733016647301,-500.0,0.00026301,3]
[343903191,1733016647311,-668.54,0.00026301,3]
[343903192,1733016647321,-500.0,0.00026301,3]
[343903193,1733016647330,-500.0,0.00026301,3]
[343903194,1733016647340,-500.0,0.00026301,3]
[343903195,1733016647349,-500.0,0.00026301,3]
[343903196,1733016647359,-587.8,0.00026301,3]
[343903197,1733016647368,-540.85589896,0.00026301,3]
[343903198,1733016647378,-500.0,0.00026301,3]
[343903199,1733016647387,-500.0,0.00026301,3]
[343903200,1733016647396,-500.0,0.00026301,3]
[343903201,1733016647405,-500.0,0.00026301,3]
[343903202,1733016647415,-500.0,0.00026301,3]
[343903203,1733016647426,-500.0,0.00026301,3]
[343903204,1733016647436,-500.0,0.00026301,3]
[343903205,1733016647449,-500.0,0.00026301,3]
[343903206,1733016647458,-500.0,0.00026301,3]
[343903207,1733016647468,-500.0,0.00026301,3]
[343903208,1733016647477,-500.0,0.00026301,3]
[343903209,1733016647488,-500.0,0.00026301,3]
[343903210,1733016647498,-500.0,0.00026301,3]
[343903211,1733016647508,-500.0,0.00026301,3]
[343903212,1733016647518,-500.0,0.00026301,3]
[343903213,1733016647528,-1344.09,0.00026301,3]
[343903214,1733016647539,-500.0,0.00026301,3]
[343903215,1733016647549,-629.61418836,0.00026301,3]
[343903216,1733016647558,-1194.05,0.00026301,3]
[343903217,1733016647568,-500.0,0.00026301,3]
[343903218,1733016647577,-1010.21,0.00026301,3]
[343903219,1733016647587,-500.0,0.00026301,3]
[343903220,1733016647596,-500.0,0.00026301,3]
[343903221,1733016647605,-500.0,0.00026301,3]
[343903222,1733016647615,-500.0,0.00026301,3]
[343903223,1733016647624,-500.0,0.00026301,3]
[343903224,1733016647633,-500.0,0.00026495,2]
[343903225,1733016647642,-300.0,0.000265,2]
[343903226,1733016647652,-500.0,0.00026502,2]
[343903227,1733016647661,-500.0,0.00026568,3]
[343903228,1733016647670,-500.0,0.00026568,3]
[343903229,1733016647679,-856.12,0.00026568,3]
[343903230,1733016647688,-500.0,0.00026568,3]
[343903231,1733016647702,-500.0,0.00026568,3]
[343903232,1733016647712,-500.0,0.00026568,3]
[343903233,1733016647722,-500.0,0.00026571,3]
[343903234,1733016647732,-500.0,0.00026575,3]
[343903235,1733016647742,-500.0,0.00026575,3]
[343903236,1733016647751,-500.0,0.00026575,3]
[343903237,1733016647761,-500.0,0.00026575,3]
[343903238,1733016647771,-500.0,0.00026575,3]
[343903239,1733016647780,-500.0,0.00026575,3]
[343903240,1733016647789,-500.0,0.00026575,3]
[343903241,1733016647799,-462.26962078,0.00026575,3]
[343903242,1733016647808,-500.0,0.00026575,3]
[343903243,1733016647817,-943.13,0.00026575,3]
[343903244,1733016647827,-500.0,0.00026575,3]
[343903245,1733016647837,-552.36,0.00026575,3]
[343903246,1733016647846,-500.0,0.00026575,3]
[343903247,1733016647855,-668.54,0.00026575,3]
[343903248,1733016647870,-500.0,0.00026575,3]
[343903249,1733016647880,-500.0,0.00026575,3]
[343903250,1733016647890,-500.0,0.00026575,3]
[343903251,1733016647900,-500.0,0.00026575,3]
[343903252,1733016647910,-587.8,0.00026575,3]
[343903253,1733016647920,-513.53263834,0.00026575,3]
[343903254,1733016647930,-500.0,0.00026575,3]
[343903255,1733016647940,-500.0,0.00026575,3]
[343903256,1733016647951,-500.0,0.00026575,3]
[343903257,1733016647961,-500.0,0.00026575,3]
[343903258,1733016647971,-500.0,0.00026575,3]
[343903259,1733016647981,-500.0,0.00026575,3]
[343903260,1733016648116,-500.0,0.00026575,3]
[343903261,1733016648128,-500.0,0.00026575,3]
[343903262,1733016648139,-500.0,0.00026575,3]
[343903263,1733016648149,-285.77380553,0.00026575,3]
[343903264,1733016648160,-500.0,0.00026575,3]
[343903265,1733016648170,-539.82622125,0.00026575,3]
[343903266,1733016648180,-500.0,0.00026575,3]
[343903267,1733016648193,-1344.09,0.00026575,3]
[343903268,1733016648203,-500.0,0.00026575,3]
[343903269,1733016648214,-189.42479264,0.00026575,3]
[343903270,1733016648258,-1169.27083333,0.00024657,3]
[343903271,1733016648268,-1169.27083333,0.00024657,3]
[343903272,1733016648282,-1169.27083333,0.00024657,3]
[343903273,1733016648292,-1004.62520736,0.00026575,3]
[343903274,1733016648302,-500.0,0.00026575,3]
[343903275,1733016648313,-1010.21,0.00026575,3]
[343903276,1733016648323,-500.0,0.00026575,3]
[343903277,1733016648332,-500.0,0.00026575,3]
[343903278,1733016648341,-500.0,0.00026575,3]
[343903279,1733016648351,-500.0,0.00026575,3]
[343903280,1733016648360,-500.0,0.00026575,3]
[343903281,1733016648370,-500.0,0.00026689,7]
[343903282,1733016648380,-336.40382975,0.00026814,2]
[343903283,1733016648391,-500.65911155,0.00026819,2]
[343903284,1733016648401,-500.0,0.00026842,3]
[343903285,1733016648411,-500.0,0.00026842,3]
[343903286,1733016648421,-856.12,0.00026842,3]
[343903287,1733016648431,-500.0,0.00026842,3]
[343903288,1733016648443,-500.0,0.00026842,3]
[343903289,1733016648452,-500.0,0.00026842,3]
[343903290,1733016648462,-500.0,0.00026845,3]
[343903291,1733016648471,-500.0,0.00026849,3]
[343903292,1733016648481,-500.0,0.00026849,3]
[343903293,1733016648490,-500.0,0.00026849,3]
[343903294,1733016648500,-494.8089133,0.00026849,3]
[343903295,1733016648509,-463.69002386,0.00026849,3]
[343903296,1733016648518,-500.0,0.00026849,3]
[343903297,1733016648528,-500.0,0.00026849,3]
[343903298,1733016648537,-500.0,0.00026849,3]
[343903299,1733016648547,-943.13,0.00026849,3]
[343903300,1733016648557,-500.0,0.00026849,3]
[343903301,1733016648567,-552.36,0.00026849,3]
[343903302,1733016648576,-500.0,0.00026849,3]
[343903303,1733016648586,-668.54,0.00026849,3]
[343903304,1733016648596,-632.07,0.00026849,3]
[343903305,1733016648605,-500.0,0.00026849,3]
[343903306,1733016648615,-500.0,0.00026849,3]
[343903307,1733016648625,-587.8,0.00026849,3]
[343903308,1733016648635,-447.56448789,0.00026849,3]
[343903309,1733016648645,-207.90954709,0.00026849,3]
[343903310,1733016648658,-292.09045291,0.00026849,3]
[343903311,1733016648668,-500.0,0.00026849,3]
[343903312,1733016648678,-500.0,0.00026849,3]
[343903313,1733016648688,-500.0,0.00026849,3]
[343903314,1733016648701,-500.0,0.00026849,3]
[343903315,1733016648711,-500.0,0.00026849,3]
[343903316,1733016648720,-500.0,0.00026849,3]
[343903317,1733016648730,-500.0,0.00026849,3]
[343903318,1733016648739,-500.0,0.00026849,3]
[343903319,1733016648750,-500.0,0.00026849,3]
[343903320,1733016648759,-1344.09,0.00026849,3]
[343903321,1733016648769,-500.0,0.00026849,3]
[343903322,1733016648779,-1194.05,0.00026849,3]
[343903323,1733016648790,-500.0,0.00026849,3]
[343903324,1733016648807,-1010.21,0.00026849,3]
[343903325,1733016648826,-500.0,0.00026849,3]
[343903326,1733016648840,-500.0,0.00026849,3]
[343903327,1733016648857,-500.0,0.00026849,3]
[343903328,1733016648875,-500.0,0.00026849,3]
[343903329,1733016648891,-541.99781842,0.00026849,3]
[343903330,1733016648907,-228.1304,0.00026903,30]
[343903331,1733016648923,-151.0,0.00026992,7]
[343903332,1733016648938,-158.47804,0.00026992,7]
[343903333,1733016648961,-158.47804,0.00026992,7]
[343903334,1733016648978,-151.0,0.00026992,7]
[343903335,1733016648993,-155.840798,0.00026992,7]
[343903336,1733016649005,-155.840798,0.00026992,7]
[343903337,1733016649019,-157.492208,0.00027049,2]
[343903338,1733016649033,-260.37924003,0.00027116,3]
[343903339,1733016649053,-248.73880168,0.00027116,3]
[343903340,1733016649069,-500.0,0.00027116,3]
[343903341,1733016649086,-856.12,0.00027116,3]
[343903342,1733016649103,-500.0,0.00027116,3]
[343903343,1733016649115,-195.14119832,0.00027116,3]
[343903344,1733016649202,-347.56382516,0.00024657,3]
[343903345,1733016649222,-168.18123144,0.00024657,3]
[343903346,1733016649235,-412.9843129,0.00026435,2]
[343903348,1733016988678,569.41,0.00022,30]
[343903350,1733017261670,50408.41,0.0001616,2]
[343903370,1733017832679,-197.4216192,0.00019117,2]
[343903371,1733017832789,-172.627842,0.00019178,2]
[343903372,1733017832799,-187.654496,0.00019317,2]
[343903373,1733017832808,-174.14310402,0.000199,2]
[343903374,1733017832818,-1169.27083333,0.0002,2]
[343903375,1733017832827,-500.0,0.00020111,2]
[343903376,1733017832837,-500.0,0.00020111,2]
[343903377,1733017832847,-188.30451637,0.00020111,2]
[343903378,1733017832856,-500.0,0.00020111,2]
[343903379,1733017832866,-500.0,0.00020111,2]
[343903380,1733017832875,-500.0,0.00020111,2]
[343903381,1733017832885,-500.0,0.00020111,2]
[343903382,1733017832894,-500.0,0.00020111,2]
[343903383,1733017832903,-311.76598498,0.00020111,2]
[343903384,1733017832912,-500.0,0.00020111,2]
[343903385,1733017832922,-500.0,0.00020111,2]
[343903386,1733017832932,-500.0,0.00020111,2]
[343903387,1733017832943,-500.0,0.00020111,2]
[343903388,1733017832953,-157.04541456,0.00020111,2]
[343903389,1733017832967,-500.0,0.00020111,2]
[343903390,1733017832977,-500.0,0.00020111,2]
[343903391,1733017832986,-500.0,0.00020111,2]
[343903392,1733017832996,-500.0,0.00020111,2]
[343903393,1733017833006,-500.0,0.00020111,2]
[343903394,1733017833016,-500.0,0.00020111,2]
[343903395,1733017833025,-500.0,0.00020111,2]
[343903396,1733017833034,-500.0,0.00020111,2]
[343903397,1733017833044,-500.0,0.00020111,2]
[343903398,1733017833053,-500.0,0.00020111,2]
[343903399,1733017833063,-500.0,0.00020111,2]
[343903400,1733017833072,-500.0,0.00020111,2]
[343903401,1733017833081,-262.78333243,0.00020111,2]
[343903402,1733017833091,-500.0,0.00020111,2]
[343903403,1733017833100,-500.0,0.00020111,2]
[343903404,1733017833109,-908.88462219,0.00020112,2]
[343903405,1733017833120,-300.0,0.00020112,2]
[343903406,1733017833129,-300.0,0.00020112,2]